fUSD/lending_fUSD_20260622
["ID","MTS","AMOUNT","RATE_DAILY","PERIOD"]
[425974542,1782061896000,-500.0,0.00028219,2]
[425974540,1782061896000,-2478.59,0.00028219,2]
[425974538,1782061896000,-763.6,0.00028219,2]
[425974536,1782061896000,-500.0,0.00028219,2]
[425974545,1782061896000,-500.0,0.00028219,2]
[425974543,1782061896000,-520.25749114,0.00028219,2]
[425974546,1782061896000,-3418.67,0.00028219,2]
[425974544,1782061896000,-514.73,0.00028219,2]
[425974547,1782061896000,-500.0,0.00028219,2]
[425974541,1782061896000,-500.0,0.00028219,2]
[425974550,1782061896000,-981.05,0.00028219,2]
[425974549,1782061896000,-10410.98,0.00028219,2]
[425974642,1782061897000,-50638.63297788,0.00028219,2]
[425974637,1782061897000,-500.0,0.00028219,2]
[425974638,1782061897000,-500.0,0.00028219,2]
[425974644,1782061897000,-208.8,0.00028267,2]
[425974635,1782061897000,-4853.13,0.00028219,2]
[425974639,1782061897000,-500.0,0.00028219,2]
[425974636,1782061897000,-500.0,0.00028219,2]
[425974643,1782061897000,-509.0,0.00028238,3]
[425974629,1782061897000,-543.15,0.00028219,2]
[425974646,1782061897000,-174.3,0.0002831,2]
[425974641,1782061897000,-399.54095249,0.00028219,2]
[425974655,1782061897000,-316.8,0.00028493,2]
[425974640,1782061897000,-517.66992654,0.00028219,2]
[425974649,1782061897000,-14961.454549,0.00028359,2]
[425974648,1782061897000,-350058.4189114,0.00028334,2]
[425974647,1782061897000,-1334.73,0.00028325,2]
[425974656,1782061897000,-273.47,0.00028493,2]
[425974657,1782061897000,-226.28,0.00028493,2]
[425974651,1782061897000,-2331.0,0.00028456,3]
[425974654,1782061897000,-211.2,0.00028493,2]
[425974652,1782061897000,-501.82455083,0.00028493,2]
[425974653,1782061897000,-201.89,0.00028493,2]
[425974633,1782061897000,-1025.57,0.00028219,2]
[425974645,1782061897000,-12094.1585097,0.0002831,2]
[425974631,1782061897000,-352.92972669,0.00028219,2]
[425974614,1782061897000,-500.0,0.00028219,2]
[425974628,1782061897000,-500.0,0.00028219,2]
[425974606,1782061897000,-529.37,0.00028219,2]
[425974611,1782061897000,-501.82455083,0.00028219,2]
[425974607,1782061897000,-8318.01,0.00028219,2]
[425974610,1782061897000,-500.0,0.00028219,2]
[425974608,1782061897000,-500.0,0.00028219,2]
[425974609,1782061897000,-500.0,0.00028219,2]
[425974612,1782061897000,-500.0,0.00028219,2]
[425974616,1782061897000,-6111.21,0.00028219,2]
[425974658,1782061897000,-242.27,0.00028493,2]
[425974617,1782061897000,-500.0,0.00028219,2]
[425974613,1782061897000,-4605.85,0.00028219,2]
[425974630,1782061897000,-500.0,0.00028219,2]
[425974615,1782061897000,-500.0,0.00028219,2]
[425974618,1782061897000,-546.99,0.00028219,2]
[425974621,1782061897000,-500.0,0.00028219,2]
[425974620,1782061897000,-500.0,0.00028219,2]
[425974622,1782061897000,-500.0,0.00028219,2]
[425974624,1782061897000,-3268.54,0.00028219,2]
[425974634,1782061897000,-781.73,0.00028219,2]
[425974625,1782061897000,-500.0,0.00028219,2]
[425974623,1782061897000,-500.0,0.00028219,2]
[425974632,1782061897000,-6629.64,0.00028219,2]
[425974626,1782061897000,-500.0,0.00028219,2]
[425974627,1782061897000,-500.0,0.00028219,2]
[425974619,1782061897000,-2744.45,0.00028219,2]
[425974661,1782061897000,-263.74,0.00028493,2]
[425974650,1782061897000,-159.4358892,0.00028447,2]
[425974662,1782061897000,-276.52,0.00028493,2]
[425974699,1782061897000,-536.66,0.00028493,2]
[425974690,1782061897000,-2687.78,0.00028493,2]
[425974692,1782061897000,-500.0,0.00028493,2]
[425974695,1782061897000,-1000.0,0.00028493,7]
[425974694,1782061897000,-500.0,0.00028493,2]
[425974697,1782061897000,-500.0,0.00028493,2]
[425974693,1782061897000,-500.0,0.00028493,2]
[425974698,1782061897000,-500.0,0.00028493,2]
[425974696,1782061897000,-500.0,0.00028493,2]
[425974701,1782061897000,-500.0,0.00028493,2]
[425974700,1782061897000,-500.0,0.00028493,2]
[425974689,1782061897000,-500.0,0.00028493,2]
[425974702,1782061897000,-500.0,0.00028493,2]
[425974709,1782061897000,-500.0,0.00028493,2]
[425974704,1782061897000,-508.36,0.00028493,2]
[425974703,1782061897000,-631.9,0.00028493,2]
[425974707,1782061897000,-500.0,0.00028493,2]
[425974706,1782061897000,-500.0,0.00028493,2]
[425974708,1782061897000,-500.0,0.00028493,2]
[425974711,1782061897000,-1266.12,0.00028493,2]
[425974714,1782061897000,-1217.07,0.00028493,2]
[425974660,1782061897000,-226.28,0.00028493,2]
[425974710,1782061897000,-1880.63,0.00028493,2]
[425974712,1782061897000,-645.4,0.00028493,2]
[425974705,1782061897000,-500.0,0.00028493,2]
[425974691,1782061897000,-403.29947283,0.00028493,2]
[425974713,1782061897000,-1160.03,0.00028493,2]
[425974687,1782061897000,-579.02,0.00028493,2]
[425974688,1782061897000,-500.0,0.00028493,2]
[425974659,1782061897000,-363.41,0.00028493,2]
[425974664,1782061897000,-156.942244,0.00028493,2]
[425974663,1782061897000,-43950.135166,0.00028493,2]
[425974667,1782061897000,-500.0,0.00028493,2]
[425974666,1782061897000,-500.0,0.00028493,2]
[425974669,1782061897000,-500.0,0.00028493,2]
[425974675,1782061897000,-500.0,0.00028493,2]
[425974673,1782061897000,-500.0,0.00028493,2]
[425974674,1782061897000,-576.16,0.00028493,2]
[425974670,1782061897000,-427.82179822,0.00028493,2]
[425974671,1782061897000,-500.0,0.00028493,2]
[425974665,1782061897000,-500.0,0.00028493,2]
[425974668,1782061897000,-343.16140177,0.00028493,2]
[425974672,1782061897000,-500.0,0.00028493,2]
[425974686,1782061897000,-500.0,0.00028493,2]
[425974679,1782061897000,-500.0,0.00028493,2]
[425974677,1782061897000,-500.0,0.00028493,2]
[425974680,1782061897000,-500.0,0.00028493,2]
[425974685,1782061897000,-405.6301871,0.00028493,2]
[425974681,1782061897000,-368.68903856,0.00028493,2]
[425974682,1782061897000,-500.0,0.00028493,2]
[425974678,1782061897000,-500.0,0.00028493,2]
[425974676,1782061897000,-500.0,0.00028493,2]
[425974683,1782061897000,-500.0,0.00028493,2]
[425974684,1782061897000,-500.0,0.00028493,2]
[425974740,1782061898000,-500.0,0.00028493,2]
[425974751,1782061898000,-527.94,0.00028493,2]
[425974742,1782061898000,-500.0,0.00028493,2]
[425974738,1782061898000,-1267.5,0.00028493,2]
[425974744,1782061898000,-500.0,0.00028493,2]
[425974746,1782061898000,-500.0,0.00028493,2]
[425974745,1782061898000,-555.93,0.00028493,2]
[425974749,1782061898000,-500.0,0.00028493,2]
[425974748,1782061898000,-500.0,0.00028493,2]
[425974747,1782061898000,-500.0,0.00028493,2]
[425974756,1782061898000,-500.0,0.00028493,2]
[425974750,1782061898000,-500.0,0.00028493,2]
[425974753,1782061898000,-526.65,0.00028493,2]
[425974754,1782061898000,-500.0,0.00028493,2]
[425974757,1782061898000,-500.0,0.00028493,2]
[425974755,1782061898000,-540.54,0.00028493,2]
[425974763,1782061898000,-500.0,0.00028493,2]
[425974760,1782061898000,-902.56,0.00028493,2]
[425974762,1782061898000,-500.0,0.00028493,2]
[425974758,1782061898000,-610.79,0.00028493,2]
[425974737,1782061898000,-500.0,0.00028493,2]
[425974752,1782061898000,-167.15875218,0.00028493,2]
[425974739,1782061898000,-500.0,0.00028493,2]
[425974726,1782061898000,-500.0,0.00028493,2]
[425974735,1782061898000,-500.0,0.00028493,2]
[425974719,1782061898000,-842.29,0.00028493,2]
[425974720,1782061898000,-500.0,0.00028493,2]
[425974718,1782061898000,-500.0,0.00028493,2]
[425974715,1782061898000,-338.12997869,0.00028493,2]
[425974716,1782061898000,-1512.27,0.00028493,2]
[425974717,1782061898000,-500.0,0.00028493,2]
[425974721,1782061898000,-544.8,0.00028493,2]
[425974727,1782061898000,-500.0,0.00028493,2]
[425974725,1782061898000,-500.0,0.00028493,2]
[425974724,1782061898000,-651.64,0.00028493,2]
[425974723,1782061898000,-975.39,0.00028493,2]
[425974722,1782061898000,-643.15,0.00028493,2]
[425974729,1782061898000,-500.0,0.00028493,2]
[425974731,1782061898000,-500.0,0.00028493,2]
[425974728,1782061898000,-923.93,0.00028493,2]
[425974730,1782061898000,-1369.32,0.00028493,2]
[425974733,1782061898000,-553.48,0.00028493,2]
[425974743,1782061898000,-500.0,0.00028493,2]
[425974732,1782061898000,-500.0,0.00028493,2]
[425974734,1782061898000,-500.0,0.00028493,2]
[425974736,1782061898000,-500.0,0.00028493,2]
[425974741,1782061898000,-597.73,0.00028493,2]
[425974759,1782061898000,-500.0,0.00028493,2]
[425974761,1782061898000,-500.0,0.00028493,2]
[425974764,1782061898000,-500.0,0.00028493,2]
[425974789,1782061898000,-819.78,0.00028493,2]
[425974794,1782061898000,-3422.69,0.00028493,2]
[425974793,1782061898000,-500.0,0.00028493,2]
[425974795,1782061898000,-766.03,0.00028493,2]
[425974801,1782061898000,-500.01751649,0.00028493,2]
[425974796,1782061898000,-500.0,0.00028493,2]
[425974802,1782061898000,-500.0,0.00028493,2]
[425974798,1782061898000,-500.0,0.00028493,2]
[425974800,1782061898000,-500.0,0.00028493,2]
[425974797,1782061898000,-500.0,0.00028493,2]
[425974790,1782061898000,-506.54,0.00028493,2]
[425974799,1782061898000,-500.0,0.00028493,2]
[425974806,1782061898000,-500.0,0.00028493,2]
[425974810,1782061898000,-500.0,0.00028493,2]
[425974808,1782061898000,-500.0,0.00028493,2]
[425974809,1782061898000,-500.0,0.00028493,2]
[425974805,1782061898000,-500.0,0.00028493,2]
[425974807,1782061898000,-500.0,0.00028493,2]
[425974812,1782061898000,-500.0,0.00028493,2]
[425974811,1782061898000,-423.07364803,0.00028493,2]
[425974813,1782061898000,-500.0,0.00028493,2]
[425974765,1782061898000,-500.0,0.00028493,2]
[425974803,1782061898000,-549.42,0.00028493,2]
[425974791,1782061898000,-500.0,0.00028493,2]
[425974804,1782061898000,-500.0,0.00028493,2]
[425974788,1782061898000,-562.86,0.00028493,2]
[425974787,1782061898000,-647.36493611,0.00028493,2]
[425974767,1782061898000,-500.0,0.00028493,2]
[425974769,1782061898000,-500.0,0.00028493,2]
[425974766,1782061898000,-529.62,0.00028493,2]
[425974771,1782061898000,-500.0,0.00028493,2]
[425974770,1782061898000,-591.28,0.00028493,2]
[425974768,1782061898000,-500.0,0.00028493,2]
[425974773,1782061898000,-500.0,0.00028493,2]
[425974774,1782061898000,-597.07,0.00028493,2]
[425974776,1782061898000,-500.0,0.00028493,2]
[425974775,1782061898000,-500.0,0.00028493,2]
[425974772,1782061898000,-560.08,0.00028493,2]
[425974779,1782061898000,-500.0,0.00028493,2]
[425974781,1782061898000,-500.0,0.00028493,2]
[425974780,1782061898000,-500.0,0.00028493,2]
[425974778,1782061898000,-170.260492,0.00028493,2]
[425974777,1782061898000,-598.59,0.00028493,2]
[425974782,1782061898000,-500.0,0.00028493,2]
[425974783,1782061898000,-500.0,0.00028493,2]
[425974784,1782061898000,-500.0,0.00028493,2]
[425974785,1782061898000,-972.04,0.00028493,2]
[425974786,1782061898000,-433.81147534,0.00028493,2]
[425974792,1782061898000,-534.07,0.00028493,2]
[425974830,1782061899000,-500.0,0.00028493,2]
[425974829,1782061899000,-500.0,0.00028493,2]
[425974831,1782061899000,-241.27561036,0.00028493,2]
[425974832,1782061899000,-663.71,0.00028493,2]
[425974837,1782061899000,-500.0,0.00028493,2]
[425974834,1782061899000,-567.5,0.00028493,2]
[425974836,1782061899000,-1423.29,0.00028493,2]
[425974833,1782061899000,-670.78,0.00028493,2]
[425974838,1782061899000,-500.0,0.00028493,2]
[425974840,1782061899000,-500.0,0.00028493,2]
[425974828,1782061899000,-534.55,0.00028493,2]
[425974835,1782061899000,-500.0,0.00028493,2]
[425974827,1782061899000,-500.0,0.00028493,2]
[425974818,1782061899000,-500.0,0.00028493,2]
[425974824,1782061899000,-831.45,0.00028493,2]
[425974826,1782061899000,-500.0,0.00028493,2]
[425974823,1782061899000,-500.0,0.00028493,2]
[425974821,1782061899000,-500.0,0.00028493,2]
[425974822,1782061899000,-741.63,0.00028493,2]
[425974817,1782061899000,-500.0,0.00028493,2]
[425974816,1782061899000,-847.94,0.00028493,2]
[425974820,1782061899000,-500.0,0.00028493,2]
[425974815,1782061899000,-500.0,0.00028493,2]
[425974819,1782061899000,-500.0,0.00028493,2]
[425974814,1782061899000,-500.0,0.00028493,2]
[425974841,1782061899000,-500.0,0.00028493,2]
[425974825,1782061899000,-535.03,0.00028493,2]
[425974842,1782061899000,-500.0,0.00028493,2]
[425974846,1782061899000,-636.73982534,0.00028493,2]
[425974844,1782061899000,-1244.82,0.00028493,2]
[425974839,1782061899000,-500.0,0.00028493,2]
[425974869,1782061899000,-500.0,0.00028493,2]
[425974870,1782061899000,-1318.07,0.00028493,2]
[425974866,1782061899000,-1511.74,0.00028493,2]
[425974867,1782061899000,-519.3,0.00028493,2]
[425974864,1782061899000,-500.0,0.00028493,2]
[425974865,1782061899000,-500.0,0.00028493,2]
[425974863,1782061899000,-500.0,0.00028493,2]
[425974862,1782061899000,-500.0,0.00028493,2]
[425974860,1782061899000,-508.83,0.00028493,2]
[425974861,1782061899000,-678.71,0.00028493,2]
[425974856,1782061899000,-500.0,0.00028493,2]
[425974855,1782061899000,-500.0,0.00028493,2]
[425974868,1782061899000,-893.03,0.00028493,2]
[425974859,1782061899000,-500.0,0.00028493,2]
[425974843,1782061899000,-500.0,0.00028493,2]
[425974854,1782061899000,-792.91,0.00028493,2]
[425974847,1782061899000,-952.51,0.00028493,2]
[425974848,1782061899000,-620.22,0.00028493,2]
[425974849,1782061899000,-500.0,0.00028493,2]
[425974845,1782061899000,-698.8,0.00028493,2]
[425974851,1782061899000,-500.0,0.00028493,2]
[425974852,1782061899000,-588.39,0.00028493,2]
[425974853,1782061899000,-500.0,0.00028493,2]
[425974858,1782061899000,-2678.53,0.00028493,2]
[425974857,1782061899000,-640.68,0.00028493,2]
[425974850,1782061899000,-500.0,0.00028493,2]
[425974891,1782061900000,-540.14,0.00028493,2]
[425974908,1782061900000,-500.0,0.00028493,2]
[425974894,1782061900000,-500.0,0.00028493,2]
[425974893,1782061900000,-500.0,0.00028493,2]
[425974896,1782061900000,-500.0,0.00028493,2]
[425974897,1782061900000,-500.0,0.00028493,2]
[425974895,1782061900000,-500.0,0.00028493,2]
[425974907,1782061900000,-500.0,0.00028493,2]
[425974903,1782061900000,-500.0,0.00028493,2]
[425974901,1782061900000,-500.0,0.00028493,2]
[425974902,1782061900000,-3987.32,0.00028493,2]
[425974900,1782061900000,-500.0,0.00028493,2]
[425974898,1782061900000,-500.0,0.00028493,2]
[425974905,1782061900000,-500.0,0.00028493,2]
[425974904,1782061900000,-654.24,0.00028493,2]
[425974906,1782061900000,-500.0,0.00028493,2]
[425974890,1782061900000,-500.0,0.00028493,2]
[425974899,1782061900000,-500.0,0.00028493,2]
[425974892,1782061900000,-500.0,0.00028493,2]
[425974876,1782061900000,-500.0,0.00028493,2]
[425974885,1782061900000,-803.29,0.00028493,2]
[425974909,1782061900000,-500.0,0.00028493,2]
[425974873,1782061900000,-690.91,0.00028493,2]
[425974871,1782061900000,-500.0,0.00028493,2]
[425974872,1782061900000,-500.0,0.00028493,2]
[425974877,1782061900000,-500.0,0.00028493,2]
[425974874,1782061900000,-500.0,0.00028493,2]
[425974875,1782061900000,-500.0,0.00028493,2]
[425974879,1782061900000,-800.23,0.00028493,2]
[425974880,1782061900000,-500.0,0.00028493,2]
[425974881,1782061900000,-500.0,0.00028493,2]
[425974878,1782061900000,-500.0,0.00028493,2]
[425974883,1782061900000,-500.0,0.00028493,2]
[425974882,1782061900000,-594.9,0.00028493,2]
[425974884,1782061900000,-500.0,0.00028493,2]
[425974889,1782061900000,-427.02574878,0.00028493,2]
[425974887,1782061900000,-1092.63,0.00028493,2]
[425974886,1782061900000,-500.0,0.00028493,2]
[425974888,1782061900000,-500.0,0.00028493,2]
[425974910,1782061900000,-602.92,0.00028493,2]
[425974948,1782061900000,-500.0,0.00028493,2]
[425974912,1782061900000,-5864.59,0.00028493,2]
[425974933,1782061900000,-500.0,0.00028493,2]
[425974935,1782061900000,-500.0,0.00028493,2]
[425974936,1782061900000,-500.0,0.00028493,2]
[425974937,1782061900000,-500.0,0.00028493,2]
[425974938,1782061900000,-500.0,0.00028493,2]
[425974942,1782061900000,-500.0,0.00028493,2]
[425974940,1782061900000,-572.65,0.00028493,2]
[425974941,1782061900000,-1130.66,0.00028493,2]
[425974943,1782061900000,-500.0,0.00028493,2]
[425974949,1782061900000,-500.0,0.00028493,2]
[425974950,1782061900000,-3926.18,0.00028493,2]
[425974944,1782061900000,-500.0,0.00028493,2]
[425974945,1782061900000,-6753.8,0.00028493,2]
[425974946,1782061900000,-500.0,0.00028493,2]
[425974947,1782061900000,-500.0,0.00028493,2]
[425974911,1782061900000,-500.0,0.00028493,2]
[425974951,1782061900000,-500.0,0.00028493,2]
[425974931,1782061900000,-500.0,0.00028493,2]
[425974934,1782061900000,-500.0,0.00028493,2]
[425974939,1782061900000,-500.0,0.00028493,2]
[425974932,1782061900000,-500.0,0.00028493,2]
[425974914,1782061900000,-500.0,0.00028493,2]
[425974930,1782061900000,-500.0,0.00028493,2]
[425974913,1782061900000,-5224.19,0.00028493,2]
[425974917,1782061900000,-500.0,0.00028493,2]
[425974919,1782061900000,-500.0,0.00028493,2]
[425974916,1782061900000,-500.0,0.00028493,2]
[425974923,1782061900000,-500.0,0.00028493,2]
[425974920,1782061900000,-1118.18,0.00028493,2]
[425974921,1782061900000,-500.0,0.00028493,2]
[425974915,1782061900000,-500.0,0.00028493,2]
[425974924,1782061900000,-1056.03,0.00028493,2]
[425974922,1782061900000,-500.0,0.00028493,2]
[425974918,1782061900000,-500.0,0.00028493,2]
[425974927,1782061900000,-1000.0,0.00028493,2]
[425974929,1782061900000,-1016.84,0.00028493,2]
[425974926,1782061900000,-500.0,0.00028493,2]
[425974928,1782061900000,-500.0,0.00028493,2]
[425974925,1782061900000,-500.0,0.00028493,2]
[425974986,1782061901000,-822.03,0.00028493,2]
[425974975,1782061901000,-6410.69,0.00028493,2]
[425974972,1782061901000,-500.0,0.00028493,2]
[425974974,1782061901000,-4756.56,0.00028493,2]
[425974976,1782061901000,-605.17,0.00028493,2]
[425974977,1782061901000,-12052.2,0.00028493,2]
[425974978,1782061901000,-500.0,0.00028493,2]
[425974981,1782061901000,-254.60551309,0.00028493,2]
[425974983,1782061901000,-2146.6,0.00028493,2]
[425974982,1782061901000,-4173.31,0.00028493,2]
[425974980,1782061901000,-500.0,0.00028493,2]
[425974985,1782061901000,-500.0,0.00028493,2]
[425974984,1782061901000,-8253.7,0.00028493,2]
[425974988,1782061901000,-500.0,0.00028493,2]
[425974987,1782061901000,-1547.68,0.00028493,2]
[425974971,1782061901000,-500.0,0.00028493,2]
[425974979,1782061901000,-500.0,0.00028493,2]
[425974973,1782061901000,-500.0,0.00028493,2]
[425974952,1782061901000,-2712.86,0.00028493,2]
[425974968,1782061901000,-500.0,0.00028493,2]
[425974989,1782061901000,-500.0,0.00028493,2]
[425974954,1782061901000,-500.0,0.00028493,2]
[425974959,1782061901000,-4889.99,0.00028493,2]
[425974956,1782061901000,-643.45481538,0.00028493,2]
[425974958,1782061901000,-500.0,0.00028493,2]
[425974953,1782061901000,-500.0,0.00028493,2]
[425974957,1782061901000,-500.0,0.00028493,2]
[425974955,1782061901000,-873.86,0.00028493,2]
[425974963,1782061901000,-500.0,0.00028493,2]
[425974964,1782061901000,-732.43,0.00028493,2]
[425974965,1782061901000,-554.99710971,0.00028493,2]
[425974966,1782061901000,-541.15,0.00028493,2]
[425974960,1782061901000,-5923.33,0.00028493,2]
[425974961,1782061901000,-741.05,0.00028493,2]
[425974962,1782061901000,-500.0,0.00028493,2]
[425974967,1782061901000,-1048.26,0.00028493,2]
[425974970,1782061901000,-500.0,0.00028493,2]
[425974969,1782061901000,-500.0,0.00028493,2]
[425974991,1782061901000,-547.74,0.00028493,2]
[425975022,1782061901000,-500.0,0.00028493,2]
[425974993,1782061901000,-9055.22,0.00028493,2]
[425975014,1782061901000,-500.0,0.00028493,2]
[425975016,1782061901000,-420.423312,0.00028493,2]
[425975021,1782061901000,-544.71,0.00028493,2]
[425975017,1782061901000,-3218.44,0.00028493,2]
[425975015,1782061901000,-8104.14,0.00028493,2]
[425975019,1782061901000,-3370.08,0.00028493,2]
[425975020,1782061901000,-946.16,0.00028493,2]
[425975023,1782061901000,-8949.23,0.00028493,2]
[425975025,1782061901000,-500.0,0.00028493,2]
[425975024,1782061901000,-6582.69,0.00028493,2]
[425975029,1782061901000,-500.0,0.00028493,2]
[425975028,1782061901000,-4428.27,0.00028493,2]
[425975030,1782061901000,-3434.42,0.00028493,2]
[425975026,1782061901000,-826.36,0.00028493,2]
[425975027,1782061901000,-500.0,0.00028493,2]
[425975031,1782061901000,-6489.37,0.00028493,2]
[425974990,1782061901000,-500.0,0.00028493,2]
[425975011,1782061901000,-1094.84,0.00028493,2]
[425975006,1782061901000,-500.0,0.00028493,2]
[425975018,1782061901000,-9092.8,0.00028493,2]
[425975008,1782061901000,-4501.1,0.00028493,2]
[425974992,1782061901000,-500.0,0.00028493,2]
[425975013,1782061901000,-500.0,0.00028493,2]
[425974997,1782061901000,-500.0,0.00028493,2]
[425974994,1782061901000,-500.0,0.00028493,2]
[425974995,1782061901000,-500.0,0.00028493,2]
[425974996,1782061901000,-4867.06,0.00028493,2]
[425975001,1782061901000,-500.0,0.00028493,2]
[425975003,1782061901000,-913.85,0.00028493,2]
[425974999,1782061901000,-500.0,0.00028493,2]
[425974998,1782061901000,-4107.48,0.00028493,2]
[425975012,1782061901000,-500.0,0.00028493,2]
[425975002,1782061901000,-839.88,0.00028493,2]
[425975004,1782061901000,-500.0,0.00028493,2]
[425975005,1782061901000,-9631.81,0.00028493,2]
[425975007,1782061901000,-500.0,0.00028493,2]
[425975010,1782061901000,-500.0,0.00028493,2]
[425975000,1782061901000,-500.0,0.00028493,2]
[425975009,1782061901000,-1087.92,0.00028493,2]
[425975058,1782061902000,-500.0,0.00028493,2]
[425975063,1782061902000,-6683.71,0.00028493,2]
[425975060,1782061902000,-500.0,0.00028493,2]
[425975053,1782061902000,-500.0,0.00028493,2]
[425975057,1782061902000,-15060.49,0.00028493,2]
[425975056,1782061902000,-650.16,0.00028493,2]
[425975065,1782061902000,-629.28,0.00028493,2]
[425975059,1782061902000,-6462.79,0.00028493,2]
[425975064,1782061902000,-538.42,0.00028493,2]
[425975070,1782061902000,-785.35,0.00028493,2]
[425975062,1782061902000,-3874.09,0.00028493,2]
[425975066,1782061902000,-500.0,0.00028493,2]
[425975069,1782061902000,-500.0,0.00028493,2]
[425975067,1782061902000,-500.0,0.00028493,2]
[425975073,1782061902000,-500.0,0.00028493,2]
[425975071,1782061902000,-500.0,0.00028493,2]
[425975068,1782061902000,-500.0,0.00028493,2]
[425975055,1782061902000,-631.38,0.00028493,2]
[425975061,1782061902000,-4131.31,0.00028493,2]
[425975054,1782061902000,-742.97,0.00028493,2]
[425975039,1782061902000,-500.0,0.00028493,2]
[425975052,1782061902000,-10460.79,0.00028493,2]
[425975032,1782061902000,-500.0,0.00028493,2]
[425975033,1782061902000,-500.0,0.00028493,2]
[425975072,1782061902000,-853.42,0.00028493,2]
[425975034,1782061902000,-500.0,0.00028493,2]
[425975035,1782061902000,-6468.05,0.00028493,2]
[425975037,1782061902000,-8108.8,0.00028493,2]
[425975038,1782061902000,-500.0,0.00028493,2]
[425975036,1782061902000,-500.0,0.00028493,2]
[425975040,1782061902000,-763.6,0.00028493,2]
[425975048,1782061902000,-8432.29,0.00028493,2]
[425975049,1782061902000,-10410.98,0.00028493,2]
[425975043,1782061902000,-500.0,0.00028493,2]
[425975046,1782061902000,-500.0,0.00028493,2]
[425975042,1782061902000,-2478.59,0.00028493,2]
[425975041,1782061902000,-500.0,0.00028493,2]
[425975047,1782061902000,-3418.67,0.00028493,2]
[425975045,1782061902000,-514.73,0.00028493,2]
[425975044,1782061902000,-500.0,0.00028493,2]
[425975050,1782061902000,-500.0,0.00028493,2]
[425975051,1782061902000,-981.05,0.00028493,2]
[425975074,1782061902000,-500.0,0.00028493,2]
[425975075,1782061902000,-500.0,0.00028493,2]
[425975078,1782061902000,-500.0,0.00028493,2]
[425975097,1782061902000,-500.0,0.00028493,2]
[425975102,1782061902000,-529.37,0.00028493,2]
[425975103,1782061902000,-8318.01,0.00028493,2]
[425975106,1782061902000,-500.0,0.00028493,2]
[425975110,1782061902000,-6111.21,0.00028493,2]
[425975104,1782061902000,-500.0,0.00028493,2]
[425975105,1782061902000,-500.0,0.00028493,2]
[425975109,1782061902000,-500.0,0.00028493,2]
[425975108,1782061902000,-500.0,0.00028493,2]
[425975111,1782061902000,-500.0,0.00028493,2]
[425975113,1782061902000,-546.99,0.00028493,2]
[425975112,1782061902000,-500.0,0.00028493,2]
[425975119,1782061902000,-3268.54,0.00028493,2]
[425975118,1782061902000,-500.0,0.00028493,2]
[425975114,1782061902000,-2744.45,0.00028493,2]
[425975115,1782061902000,-614.28520839,0.00028493,2]
[425975117,1782061902000,-500.0,0.00028493,2]